bitfinex-derivatives/quotes_ETHF0:USTF0_20250507
["timestamp","ask_amount","ask_price","bid_price","bid_amount"]
[1746617547907,1.7142,1835.7,1835.5,2.4433]
[1746617548303,7.052,1835.8,1835.6,1.635]
[1746617548505,6.2428,1835.8,1835.6,1.635]
[1746617548706,3.035,1835.8,1835.6,1.635]
[1746617548906,3.035,1835.8,1835.6,5.755]
[1746617549106,3.035,1835.8,1835.7,1.635]
[1746617549411,9.30936846,1836.0,1835.7,1.635]
[1746617549613,1.7142,1835.9,1835.7,1.635]
[1746617550807,5.43576846,1836.0,1835.8,0.8567]
[1746617551014,5.43576846,1836.0,1835.9,5.7543]
[1746617552115,5.43576846,1836.0,1835.9,9.3543]
[1746617552308,5.43576846,1836.0,1835.9,12.5621]
[1746617553116,5.7954,1836.4,1835.9,12.5621]
[1746617553313,5.7954,1836.4,1836.0,1.6343]
[1746617553514,5.7954,1836.4,1836.1,0.8416]
[1746617553714,5.7954,1836.4,1836.2,5.827]
[1746617553907,5.7954,1836.4,1836.3,1.708]
[1746617556718,5.7954,1836.4,1836.3,42.508]
[1746617556905,5.7954,1836.4,1836.3,40.8]
[1746617558217,9.3954,1836.4,1836.3,40.8]
[1746617569027,6.1876,1836.4,1836.3,40.8]
[1746617569428,6.1876,1836.4,1836.2,5.7604]
[1746617569614,1.6967,1836.3,1836.2,5.7604]
[1746617569925,1.6967,1836.3,1836.2,46.5604]
[1746617570130,5.2967,1836.3,1836.2,46.5604]
[1746617570621,5.2967,1836.3,1836.2,44.919]
[1746617571127,1.6967,1836.3,1836.2,44.919]
[1746617573528,1.6967,1836.3,1836.2,46.5323]
[1746617574120,0.8625,1836.4,1836.2,46.5323]
[1746617574326,0.8625,1836.4,1836.3,1.6133]
[1746617580427,3.2078,1836.5,1836.3,1.6133]
[1746617580621,3.2078,1836.5,1836.4,0.8616]
[1746617581217,3.2078,1836.5,1836.4,2.5059]
[1746617587235,3.2078,1836.5,1836.4,6.1059]
[1746617589633,3.2078,1836.6,1836.4,6.1059]
[1746617589935,3.2078,1836.6,1836.5,1.7083]
[1746617590533,3.2078,1836.6,1836.5,42.5083]
[1746617592334,2.5262,1836.7,1836.5,46.6253]
[1746617592533,2.5262,1836.7,1836.6,1.6065]
[1746617595132,3.2078,1836.8,1836.6,1.6065]
[1746617595429,3.2078,1836.8,1836.7,0.879]
[1746617595635,6.6344,1837.0,1836.7,1.6954]
[1746617595934,3.2078,1837.0,1836.8,46.5448]
[1746617596135,3.2078,1837.0,1836.9,1.6278]
[1746617596633,5.43576846,1837.1,1836.9,1.6278]
[1746617596833,5.43576846,1837.1,1837.0,0.8325]
[1746617597034,5.43576846,1837.1,1837.0,0.8235]
[1746617597229,8.00136846,1837.1,1837.0,4.4235]
[1746617599139,8.00136846,1837.1,1837.0,0.8235]
[1746617600030,5.43576846,1837.1,1837.0,0.8235]
[1746617600239,7.24769128,1837.2,1837.0,9.4235]
[1746617600535,7.24769128,1837.2,1837.1,6.6937]
[1746617600737,7.24769128,1837.2,1837.1,47.4937]
[1746617601135,1.6165,1837.4,1837.1,47.4937]
[1746617601435,1.6165,1837.4,1837.2,1.7022]
[1746617602335,3.2182,1837.4,1837.2,1.7022]
[1746617602536,1.6714,1837.3,1837.2,1.7022]
[1746617606426,2.418,1837.4,1837.2,1.7022]
[1746617606632,1.6688,1837.3,1837.2,1.7022]
[1746617608744,1.6688,1837.3,1837.1,44.917]
[1746617609043,1.6885,1837.2,1837.1,44.917]
[1746617609543,1.6885,1837.2,1837.1,44.925]
[1746617610141,1.6885,1837.2,1837.1,40.8]
[1746617611137,5.2885,1837.2,1837.1,40.8]
[1746617611736,6.8936,1837.2,1837.1,40.8]
[1746617612244,6.8936,1837.2,1836.7,4.9059]
[1746617612442,4.8129,1837.1,1836.6,0.8631]
[1746617612639,1.6051,1837.0,1836.5,8.9283]
[1746617612841,0.8525,1836.9,1836.6,40.8]
[1746617613141,1.6051,1836.8,1836.6,40.8]
[1746617613945,1.6051,1836.8,1836.6,42.3955]
[1746617614641,1.6051,1836.8,1836.7,2.4209]
[1746617614836,1.7183,1836.9,1836.7,2.4209]
[1746617615037,1.6368,1837.0,1836.8,5.7215]
[1746617615239,1.6368,1837.0,1836.9,1.5965]
[1746617616044,1.6368,1837.0,1836.8,4.125]
[1746617616343,1.6692,1836.9,1836.8,4.125]
[1746617618346,3.2848,1836.9,1836.8,4.125]
[1746617618844,3.2848,1836.9,1836.6,40.8]
[1746617619040,1.6156,1836.8,1836.7,4.125]
[1746617619448,1.6156,1836.8,1836.6,40.8]
[1746617619746,1.6156,1836.8,1836.6,46.6537]
[1746617624063,1.6692,1836.9,1836.6,46.6537]
[1746617624268,1.6692,1836.9,1836.7,3.4244]
[1746617624561,0.8559,1836.9,1836.8,1.7565]
[1746617624963,4.0243,1837.0,1836.8,1.7565]
[1746617626958,0.8165,1837.0,1836.8,1.7565]
[1746617628968,2.7217,1837.0,1836.8,1.7565]
[1746617629266,1.5848,1836.9,1836.8,1.7565]
[1746617634063,5.1848,1836.9,1836.8,1.7565]
[1746617635070,1.5848,1836.9,1836.8,1.7565]
[1746617635768,1.5848,1836.9,1836.7,8.1372]
[1746617636069,1.6504,1836.8,1836.7,8.1372]
[1746617636259,1.6504,1836.8,1836.7,9.8753]
[1746617637063,0.8138,1836.8,1836.7,9.8753]
[1746617637268,1.5848,1836.9,1836.7,10.7231]
[1746617637470,3.5746,1837.0,1836.8,1.7381]
[1746617637670,2.7217,1837.0,1836.8,1.7381]
[1746617638174,2.7217,1837.0,1836.9,3.2078]
[1746617638672,0.8165,1837.0,1836.9,3.2078]
[1746617638971,0.8165,1837.0,1836.9,4.9459]
[1746617639173,0.8165,1837.0,1836.9,8.5459]
[1746617641073,4.9401,1837.1,1836.9,8.5459]
[1746617641273,4.9401,1837.1,1837.0,7.4229]
[1746617641573,3.3789,1837.4,1837.0,7.4229]
[1746617641775,0.8164,1837.2,1837.1,1.61]
[1746617643975,0.8164,1837.2,1837.1,4.8178]
[1746617649377,2.4726,1837.2,1837.1,4.8178]
[1746617650876,2.4726,1837.2,1837.1,3.2078]
[1746617651072,6.0726,1837.2,1837.0,4.138]
[1746617651279,2.4705,1837.1,1837.0,4.138]
[1746617652075,6.0705,1837.1,1837.0,4.138]
[1746617652581,3.6,1837.1,1837.0,4.138]
[1746617652782,3.6,1837.1,1837.0,5.8219]
[1746617652985,6.0216,1837.1,1837.0,5.8219]
[1746617653282,2.4216,1837.1,1837.0,5.8219]
[1746617653870,0.8164,1837.2,1837.0,5.8219]
[1746617654075,0.8164,1837.2,1837.1,1.6839]
[1746617654280,1.7333,1837.2,1837.1,1.6839]
[1746617654779,1.7333,1837.2,1837.0,4.138]
[1746617654983,1.7333,1837.2,1837.1,1.6181]
[1746617656883,3.5226,1837.3,1837.1,1.6181]
[1746617657083,3.5226,1837.3,1837.2,0.8777]
[1746617657381,1.6177,1837.3,1837.2,0.8777]
[1746617658184,3.2817,1837.3,1837.2,0.8777]
[1746617664586,3.2817,1837.3,1837.1,1.6181]
[1746617664887,3.2817,1837.3,1837.1,2.4728]
[1746617665085,1.705,1837.2,1837.1,2.4728]
[1746617665484,2.5634,1837.2,1837.1,2.4728]
[1746617669891,2.5634,1837.2,1837.1,1.6181]
[1746617671094,2.5634,1837.2,1837.0,4.9724]
[1746617671393,1.7266,1837.1,1837.0,6.688]
[1746617671793,1.7266,1837.1,1837.0,2.55]
[1746617671991,1.7266,1837.1,1837.0,4.135]
[1746617672493,1.7266,1837.1,1837.0,5.8506]
[1746617678796,2.5431,1837.1,1837.0,5.8506]
[1746617684701,2.5431,1837.1,1837.0,4.135]
[1746617686902,2.5431,1837.1,1837.0,5.8202]
[1746617693303,10.5781,1837.1,1836.8,7.27090754]
[1746617693608,3.2078,1836.9,1836.8,7.27090754]
[1746617694009,5.6886,1836.9,1836.8,7.27090754]
[1746617694203,9.2886,1836.9,1836.8,7.27090754]
[1746617694703,10.1051,1836.9,1836.8,7.27090754]
[1746617695207,4.8404,1836.9,1836.8,7.27090754]
[1746617695506,0.8165,1836.9,1836.8,8.86940754]
[1746617696206,0.8165,1836.9,1836.8,12.46940754]
[1746617697307,0.8165,1836.9,1836.8,5.1985]
[1746617698802,1.905,1837.2,1836.8,10.1985]
[1746617699005,1.905,1837.2,1837.1,3.2078]
[1746617699205,1.905,1837.2,1837.1,7.3598]
[1746617699406,1.905,1837.2,1837.1,12.3598]
[1746617699607,1.905,1837.2,1837.1,7.3598]
[1746617699809,1.905,1837.2,1837.1,8.1607]
[1746617701298,4.5096,1837.2,1837.1,4.0087]
[1746617702100,4.5096,1837.2,1837.1,5.6585]
[1746617703613,2.7781,1837.2,1837.1,5.6585]
[1746617703805,1.905,1837.2,1837.1,5.6585]
[1746617706509,5.44692819,1837.6,1837.1,10.6585]
[1746617706711,5.44692819,1837.6,1837.4,3.2078]
[1746617707007,5.44692819,1837.6,1837.5,2.5314]
[1746617707207,6.73852819,1837.6,1837.5,2.5314]
[1746617707709,5.44692819,1837.6,1837.5,2.5314]
[1746617707909,7.03752819,1837.6,1837.4,4.152]
[1746617708211,1.5906,1837.5,1837.4,4.152]
[1746617711317,1.59570568,1837.5,1837.4,4.152]
[1746617714117,5.19570568,1837.5,1837.4,4.152]
[1746617716119,5.19570568,1837.5,1837.2,4.8655]
[1746617716313,3.3356,1837.4,1837.2,4.8655]
[1746617716509,1.6374,1837.3,1837.2,4.8655]
[1746617720817,1.6374,1837.3,1837.2,3.2078]
[1746617725119,1.6374,1837.3,1837.1,9.1091]
[1746617726913,1.6374,1837.3,1837.2,1.6304]
[1746617728718,1.6374,1837.3,1837.1,7.3598]
[1746617728918,1.6374,1837.3,1837.1,9.0919]
[1746617734311,1.6374,1837.3,1837.2,1.6381]
[1746617734513,2.2394,1837.4,1837.2,1.6381]
[1746617734716,1.3947,1837.4,1837.3,0.8036]
[1746617735315,0.5412,1837.4,1837.3,0.8036]
[1746617735514,0.5412,1837.4,1837.3,1.6266]
[1746617737912,0.5412,1837.4,1837.3,4.8344]
[1746617738316,0.5412,1837.4,1837.3,8.4344]
[1746617739224,1.29690568,1837.5,1837.3,13.4344]
[1746617739524,1.29690568,1837.5,1837.4,5.8233]
[1746617739922,0.00510568,1837.5,1837.4,5.8233]
[1746617740118,0.00510568,1837.5,1837.4,9.4233]
[1746617741220,0.00510568,1837.5,1837.4,5.8233]
[1746617742026,3.23360568,1837.5,1837.4,5.8233]
[1746617743623,0.00510568,1837.5,1837.4,5.8233]
[1746617746431,1.2917,1837.6,1837.4,5.8233]
[1746617746826,1.2917,1837.6,1837.5,1.7095]
[1746617747027,5.6846,1837.8,1837.5,42.5095]
[1746617747325,5.6846,1837.8,1837.6,0.7973]
[1746617747326,2.4768,1837.8,1837.6,0.7973]
[1746617747526,2.4768,1837.8,1837.6,2.5068]
[1746617747731,3.7684,1837.8,1837.6,2.5068]
[1746617752434,3.7684,1837.8,1837.7,40.8]
[1746617752733,2.4768,1837.8,1837.7,40.8]
[1746617753938,2.4768,1837.8,1837.7,42.3962]
[1746617754236,6.0768,1837.8,1837.7,42.3962]
[1746617755138,2.4768,1837.8,1837.7,42.3962]
[1746617757141,0.8028,1837.8,1837.7,42.3962]
[1746617758540,2.519,1837.8,1837.7,42.3962]
[1746617758739,2.519,1837.8,1837.6,0.7973]
[1746617758938,2.5707,1837.7,1837.5,1.6651]
[1746617759137,1.7162,1837.6,1837.5,1.6651]
[1746617759443,1.7162,1837.6,1837.4,5.0217]
[1746617759741,0.8246,1837.5,1837.4,5.0217]
[1746617759943,0.8246,1837.5,1837.4,6.6868]
[1746617765141,0.8246,1837.5,1837.4,4.154]
[1746617767144,0.8246,1837.5,1837.3,40.8]
[1746617767341,2.5339,1837.4,1837.0,7.26159797]
[1746617767542,1.6835,1837.3,1837.0,9.01699797]
[1746617767737,1.6835,1837.3,1837.1,42.5554]
[1746617767738,0.8252,1837.2,1837.1,42.5554]
[1746617770851,0.8252,1837.2,1837.1,40.8]
[1746617771646,4.033,1837.2,1836.9,4.9887]
[1746617771857,4.033,1837.2,1836.7,7.26159797]
[1746617771858,2.4691,1837.1,1836.7,7.26159797]
[1746617772144,1.6323,1837.0,1836.8,40.8]
[1746617772350,0.8304,1836.9,1836.8,40.8]
[1746617773251,0.8304,1836.9,1836.8,42.4541]
[1746617774649,2.4545,1836.9,1836.8,42.4541]
[1746617777347,1.2923,1837.0,1836.8,42.4541]
[1746617777555,1.2923,1837.0,1836.9,5.7265]
[1746617778155,1.2923,1837.0,1836.9,9.3265]
[1746617781855,1.2923,1837.0,1836.9,14.3265]
[1746617782453,1.2923,1837.0,1836.9,55.1265]
[1746617783652,1.2923,1837.0,1836.9,50.1265]
[1746617784157,1.2923,1837.0,1836.9,46.5265]
[1746617785553,1.2923,1837.0,1836.9,47.4767]
[1746617785856,2.8957,1837.0,1836.9,47.4767]
[1746617786354,2.8957,1837.0,1836.9,46.6413]
[1746617786555,2.8957,1837.0,1836.9,44.958]
[1746617787063,1.2923,1837.0,1836.9,44.958]
[1746617787853,2.8957,1837.0,1836.9,44.958]
[1746617788254,2.8957,1837.0,1836.9,46.5816]
[1746617792665,0.65619453,1837.0,1836.9,47.4216]
[1746617792960,6.2428,1837.4,1836.9,47.4216]
[1746617792961,0.8087,1837.5,1836.9,52.4216]
[1746617793259,5.44692819,1837.6,1837.3,3.2078]
[1746617793458,5.44692819,1837.6,1837.4,3.4077]
[1746617793658,6.10352819,1837.6,1837.5,1.749]
[1746617794160,5.44692819,1837.6,1837.5,1.749]
[1746617795356,12.03242819,1837.6,1837.0,3.2078]
[1746617795555,3.2676,1837.5,1837.1,4.157]
[1746617795761,4.7933,1837.4,1837.1,4.157]
[1746617795963,1.5855,1837.3,1836.9,40.8]
[1746617796158,0.8477,1837.2,1836.9,45.701]
[1746617796355,1.5855,1837.1,1836.9,45.701]
[1746617796561,1.5855,1837.1,1837.0,7.26159797]
[1746617796760,1.5855,1837.1,1837.0,8.95479797]
[1746617797363,1.5855,1837.1,1837.0,7.26159797]
[1746617798561,1.5855,1837.1,1837.0,8.88829797]
[1746617799362,1.5855,1837.1,1837.0,1.6267]
[1746617800865,1.5855,1837.1,1836.9,44.0078]
[1746617802261,1.5855,1837.1,1836.9,45.6378]
[1746617807666,1.6821,1837.2,1836.9,45.6378]
[1746617807867,3.281,1837.2,1837.0,2.4784]
[1746617808165,3.281,1837.2,1837.1,1.6451]
[1746617810870,3.6917,1837.3,1837.1,1.6451]
[1746617811172,3.6917,1837.3,1837.1,9.0099]
[1746617811569,3.6917,1837.3,1837.2,1.7526]
[1746617811777,3.3137,1837.5,1837.2,1.7526]
[1746617811972,0.7983,1837.5,1837.3,4.8745]
[1746617812167,0.7983,1837.5,1837.4,1.7526]
[1746617812976,7.80672819,1837.6,1837.4,1.7526]
[1746617813475,7.80672819,1837.6,1837.4,5.9096]
[1746617813979,0.6566,1837.6,1837.4,5.9096]
[1746617814176,0.6566,1837.6,1837.5,1.7128]
[1746617814476,0.7983,1837.7,1837.5,1.7128]
[1746617814677,0.7983,1837.7,1837.6,0.8727]
[1746617815376,2.446,1837.7,1837.6,0.8727]
[1746617816176,6.046,1837.7,1837.6,0.8727]
[1746617817277,6.046,1837.7,1837.5,1.7128]
[1746617817478,1.6798,1837.6,1837.5,1.7128]
[1746617817678,1.6798,1837.6,1837.4,4.9997]
[1746617817870,1.6798,1837.6,1837.4,6.7051]
[1746617820177,5.2798,1837.6,1837.4,6.7051]
[1746617820379,0.8083,1837.5,1837.3,7.3648]
[1746617820579,0.8347,1837.4,1837.3,3.2078]
[1746617820779,0.8347,1837.4,1837.3,4.9189]
[1746617821078,2.5838,1837.4,1837.3,4.9189]
[1746617822571,2.5838,1837.4,1837.0,8.08199797]
[1746617822771,1.7561,1837.3,1837.1,7.3748]
[1746617823272,0.8384,1837.2,1837.1,7.3748]
[1746617824578,0.8384,1837.2,1837.1,8.9923]
[1746617825280,0.8384,1837.2,1837.1,7.3748]
[1746617825882,0.8384,1837.2,1837.1,9.0556]
[1746617835689,0.8384,1837.2,1837.1,7.3748]
[1746617836379,0.8384,1837.2,1836.9,45.7417]
[1746617836579,2.5833,1837.1,1836.9,40.8]
[1746617836779,1.7417,1837.0,1836.9,40.8]
[1746617836980,1.7417,1837.0,1836.9,42.5339]
[1746617837580,0.8416,1837.1,1836.9,42.5339]
[1746617837876,2.5156,1837.1,1837.0,1.626]
[1746617838786,3.035,1837.2,1837.0,1.626]
[1746617838982,3.035,1837.2,1837.1,0.833]
[1746617839186,3.3315,1837.5,1837.1,4.0408]
[1746617839386,2.4784,1837.5,1837.2,0.8258]
[1746617839689,2.4784,1837.5,1837.3,1.626]
[1746617840082,2.4784,1837.5,1837.4,0.8144]
[1746617849791,2.4784,1837.5,1836.9,51.26939797]
[1746617849996,5.7231,1837.4,1837.0,2.4364]
[1746617850197,1.7025,1837.3,1837.1,1.5848]
[1746617850392,0.7961,1837.2,1837.1,1.5848]
[1746617851489,4.0039,1837.2,1836.9,10.46939797]
[1746617851693,2.5153,1837.1,1836.9,10.46939797]
[1746617851891,1.7025,1837.0,1836.9,12.05419797]
[1746617852393,1.7025,1837.0,1836.9,52.85419797]
[1746617853102,5.3025,1837.0,1836.9,52.85419797]
[1746617854701,5.3025,1837.0,1836.9,45.5926]
[1746617855107,1.7025,1837.0,1836.9,45.5926]
[1746617855605,3.8478,1837.1,1836.9,45.5926]
[1746617855805,3.035,1837.1,1837.0,1.601]
[1746617856698,4.6681,1837.1,1837.0,1.601]
[1746617857498,3.035,1837.1,1837.0,1.601]
[1746617858200,3.035,1837.1,1837.0,5.201]
[1746617859107,3.035,1837.1,1837.0,1.601]
[1746617859808,3.035,1837.1,1837.0,42.401]
[1746617860006,3.035,1837.1,1837.0,46.572]
[1746617860209,3.035,1837.1,1837.0,3.6]
[1746617860707,6.4018,1837.1,1837.0,3.6]
[1746617861112,6.4018,1837.1,1836.8,43.3545]
[1746617861312,1.6918,1837.0,1836.8,43.3545]
[1746617861901,1.6918,1837.0,1836.9,1.6155]
[1746617863815,1.6918,1837.0,1836.8,41.6516]
[1746617864020,1.6918,1837.0,1836.8,43.2671]
[1746617868214,1.6918,1837.0,1836.9,1.6303]
[1746617870412,1.6918,1837.0,1836.8,40.8]
[1746617870810,1.6918,1837.0,1836.8,43.3402]
[1746617871115,1.6918,1837.0,1836.9,1.6658]
[1746617876121,5.2918,1837.0,1836.9,1.6658]
[1746617878115,1.6918,1837.0,1836.9,1.6658]
[1746617879121,5.2918,1837.0,1836.9,1.6658]
[1746617880025,5.9488,1837.0,1836.9,1.6658]
[1746617880325,9.1566,1837.0,1836.8,41.6744]
[1746617880527,1.7584,1836.9,1836.8,40.8]
[1746617881127,5.3584,1836.9,1836.8,40.8]
[1746617881325,5.3584,1836.9,1836.6,0.7966]
[1746617881526,3.4247,1836.8,1836.6,2.4963]
[1746617881826,3.4247,1836.8,1836.7,40.8]
[1746617882127,7.0247,1836.8,1836.7,40.8]
[1746617883226,7.0247,1836.8,1836.6,2.4963]
[1746617883425,1.6406,1836.7,1836.6,2.4963]
[1746617883826,1.6406,1836.7,1836.6,43.2963]
[1746617885633,1.6406,1836.7,1836.6,2.4963]
[1746617885833,1.6406,1836.7,1836.4,4.172]
[1746617886025,1.6406,1836.7,1836.4,5.9191]
[1746617886226,5.2406,1836.7,1836.4,5.9191]
[1746617887131,1.664,1836.6,1836.4,5.9191]
[1746617887431,0.8472,1836.5,1836.4,5.9191]
[1746617889431,0.8472,1836.5,1836.2,1.6493]
[1746617889633,5.6502,1836.4,1836.2,2.5231]
[1746617889931,1.6361,1836.3,1835.9,7.26159797]
[1746617890129,3.2078,1836.1,1835.9,7.26159797]
[1746617890328,3.3101,1836.0,1835.9,7.26159797]
[1746617890726,3.035,1836.1,1835.9,17.16369797]
[1746617890926,3.035,1836.1,1836.0,3.3934]
[1746617891126,3.035,1836.1,1836.0,6.9934]
[1746617891327,3.035,1836.1,1836.0,11.9934]
[1746617891729,3.035,1836.1,1836.0,6.9934]
[1746617894435,4.6711,1836.5,1836.0,6.9934]
[1746617894632,4.6711,1836.5,1836.1,1.6528]
[1746617895136,4.8818,1836.6,1836.1,4.8606]
[1746617895327,4.8818,1836.6,1836.1,9.0416]
[1746617895523,4.8818,1836.6,1836.2,1.5963]
[1746617895725,4.8818,1836.6,1836.3,1.6839]
[1746617895932,4.8818,1836.6,1836.4,1.5963]
[1746617897337,6.539,1836.6,1836.4,1.5963]
[1746617902142,1.6769,1836.5,1836.3,0.8636]
[1746617903141,1.6769,1836.5,1836.2,1.672]
[1746617903540,3.2078,1836.4,1836.1,5.0193]
[1746617903741,2.5478,1836.3,1836.1,5.0193]
[1746617904040,1.6769,1836.2,1836.1,4.181]
[1746617904345,1.6769,1836.2,1836.0,2.5232]
[1746617908237,1.6769,1836.2,1836.1,1.7367]
[1746617908846,2.3343,1836.2,1836.1,1.7367]
[1746617910946,2.3343,1836.2,1836.0,0.8512]
[1746617911142,1.7431,1836.1,1836.0,2.5642]
[1746617913650,0.6574,1836.2,1836.0,2.5642]
[1746617914043,2.3461,1836.2,1836.1,1.6327]
[1746617917849,2.3461,1836.2,1836.0,0.8512]
[1746617918045,1.711,1836.1,1836.0,0.8512]
[1746617918549,1.711,1836.1,1836.0,2.4875]
[1746617924452,0.6574,1836.2,1836.0,2.4875]
[1746617924656,0.6574,1836.2,1836.1,1.6242]
[1746617933562,2.3923,1836.2,1836.1,1.6242]
[1746617948272,0.6574,1836.2,1836.1,1.6242]
[1746617948577,0.6574,1836.2,1836.1,4.832]
[1746617951474,0.6574,1836.2,1836.1,24.57001508]
[1746617955082,0.6574,1836.2,1836.1,20.92558653]
[1746617958885,0.6574,1836.2,1836.1,12.11067494]
[1746617960983,0.6574,1836.2,1836.1,10.48647494]
[1746617961377,3.196,1836.2,1836.1,10.48647494]
[1746617965388,3.196,1836.2,1836.1,3.2078]
[1746617967388,3.196,1836.2,1836.1,4.8507]
[1746617967591,0.6574,1836.2,1836.1,5.6561]
[1746617968588,0.6574,1836.2,1836.1,3.2078]
[1746617968787,2.3912,1836.2,1836.1,3.2078]
[1746617972383,2.3912,1836.2,1836.0,7.3678]
[1746617972584,2.4339,1836.1,1836.0,7.3678]
[1746617973287,3.0915,1836.1,1836.0,7.3678]
[1746617976291,3.0915,1836.1,1836.0,4.16]
[1746617976491,3.0915,1836.1,1835.8,51.28647494]
[1746617976694,2.5414,1836.0,1835.8,51.28647494]
[1746617976886,1.7196,1835.9,1835.8,51.28647494]
[1746617981390,1.7196,1835.9,1835.8,53.00727494]
[1746617981896,1.7196,1835.9,1835.8,45.7286]
[1746617984592,0.8218,1836.0,1835.8,45.7286]
[1746617984793,2.4265,1836.0,1835.9,2.5159]
[1746617986100,0.8218,1836.0,1835.9,2.5159]
[1746617986300,6.9004,1836.1,1835.9,2.5159]
[1746617986500,6.9004,1836.1,1836.0,1.6948]
[1746617989300,3.6926,1836.1,1836.0,4.9026]
[1746617989502,3.6926,1836.1,1836.0,5.758]
[1746617989704,3.6926,1836.1,1836.0,9.914]
[1746617990104,3.6926,1836.1,1836.0,13.514]
[1746617990305,0.6576,1836.1,1836.0,13.514]
[1746618002102,1.6438,1836.5,1836.0,18.514]
[1746618002316,0.8291,1836.5,1836.4,3.2078]
[1746618002714,0.8291,1836.5,1836.4,5.7319]
[1746618003120,0.8291,1836.5,1836.4,9.3319]
[1746618005127,0.8291,1836.5,1836.4,6.1241]
[1746618005318,2.5046,1836.5,1836.4,6.1241]
[1746618007727,2.5046,1836.5,1836.4,3.6]
[1746618008223,2.5046,1836.5,1836.3,4.156]
[1746618008423,2.4804,1836.4,1836.3,4.156]
[1746618012129,2.4804,1836.4,1836.3,9.3929]
[1746618014029,1.6484,1836.4,1836.3,9.3929]
[1746618017534,1.6484,1836.4,1836.3,12.6007]
[1746618026646,0.8291,1836.5,1836.3,12.6007]
[1746618026846,2.4199,1836.5,1836.4,1.6742]
[1746618027034,2.4199,1836.5,1836.4,2.55]
[1746618031148,2.4199,1836.5,1836.4,6.15]
[1746618032151,2.4199,1836.5,1836.4,2.55]
[1746618034149,0.8291,1836.5,1836.4,6.15]
[1746618035770,5.44692819,1836.8,1836.4,6.15]
[1746618035960,0.8587,1836.8,1836.6,3.2078]
[1746618036148,5.44692819,1836.9,1836.7,6.7576]
[1746618036345,5.44692819,1836.9,1836.8,4.9644]
[1746618036551,5.44692819,1836.9,1836.8,45.7644]
[1746618037152,5.44692819,1836.9,1836.8,49.3644]
[1746618040356,0.8659,1837.0,1836.8,49.3644]
[1746618040554,0.8659,1837.0,1836.9,1.6001]
[1746618041151,0.8508,1837.2,1836.9,46.0001]
[1746618041347,1.6715,1837.2,1837.0,8.2236]
[1746618041547,1.6715,1837.2,1837.0,10.6817]
[1746618041747,1.6715,1837.2,1837.1,1.6866]
[1746618042653,3.3269,1837.2,1837.0,11.8236]
[1746618042853,3.3269,1837.2,1837.0,13.5102]
[1746618043154,3.3269,1837.2,1837.0,9.9102]
[1746618043555,3.3269,1837.2,1837.1,1.6866]
[1746618044949,0.8207,1837.2,1837.1,1.6866]
[1746618045149,2.5473,1837.4,1837.1,1.6866]
[1746618045454,2.5495,1837.3,1837.1,1.6866]
[1746618050251,1.7021,1837.2,1837.1,1.6866]
[1746618050658,1.7021,1837.2,1837.0,8.2236]
[1746618050859,0.838,1837.1,1837.0,2.5356]
[1746618051156,1.7021,1837.2,1837.0,9.8814]
[1746618051355,2.5401,1837.2,1837.1,1.6742]
[1746618053458,2.5401,1837.2,1837.0,5.0148]
[1746618053658,1.6817,1837.1,1837.0,5.0148]
[1746618054963,1.6817,1837.1,1836.9,46.0742]
[1746618055161,1.6817,1837.1,1837.0,4.138]
[1746618059560,1.6817,1837.1,1836.9,40.8]
[1746618059761,1.6817,1837.1,1837.0,4.138]
[1746618060057,1.6817,1837.1,1836.9,40.8]
[1746618062256,4.7167,1837.1,1836.9,40.8]
[1746618062763,1.7152,1837.0,1836.9,40.8]
[1746618065658,2.546,1837.0,1836.9,40.8]
[1746618066364,2.546,1837.0,1836.9,42.4642]
[1746618067362,3.035,1837.1,1836.9,43.3045]
[1746618067566,3.035,1837.1,1837.0,4.872]
[1746618068169,3.035,1837.1,1837.0,8.472]
[1746618068361,1.6951,1837.3,1837.0,8.472]
[1746618068560,1.6951,1837.3,1837.1,5.8062]
[1746618076969,1.6951,1837.3,1837.2,2.4471]
[1746618077372,3.8938,1837.4,1837.2,5.6549]
[1746618077564,0.8588,1837.4,1837.3,1.5851]
[1746618081679,0.8588,1837.4,1837.2,0.862]
[1746618081870,2.6082,1837.3,1837.1,4.142]
[1746618082071,1.7472,1837.2,1837.1,4.142]
[1746618083278,1.7472,1837.2,1837.1,5.7367]
[1746618084182,1.7472,1837.2,1837.1,4.142]
[1746618085585,1.7472,1837.2,1837.0,5.6731]
[1746618085887,0.8764,1837.1,1837.0,3.2078]
[1746618086075,0.8764,1837.1,1837.0,4.8382]
[1746618086272,5.3472,1837.2,1837.0,4.8382]
[1746618086479,5.3472,1837.2,1837.1,2.4805]
[1746618086682,5.3472,1837.2,1837.0,3.2078]
[1746618086878,1.7025,1837.1,1837.0,4.8382]
[1746618088081,5.3025,1837.1,1837.0,4.8382]
[1746618090187,5.3025,1837.1,1837.0,3.2078]
[1746618092283,1.7025,1837.1,1837.0,3.2078]
[1746618094092,5.3025,1837.1,1837.0,3.2078]
[1746618095286,8.3375,1837.1,1837.0,3.2078]
[1746618096194,4.7375,1837.1,1837.0,3.2078]
[1746618097090,4.7375,1837.1,1836.9,42.4202]
[1746618097295,3.3463,1837.0,1836.9,40.8]
[1746618098099,6.9463,1837.0,1836.9,40.8]